Cogmind - Beta 11.1 @@@ ROGUE MODE // 2022.07.17 @ 14:29:26 Player: HeartGrenade Result: Destroyed by D-53 Grenadier with Mini Grenade Launcher Performance ------------- Evolutions (0) 0 Regions Visited (2) 400 Robots Destroyed (12) 60 Value Destroyed (322) 322 Prototype IDs (1) 20 Alien Tech Used (0) 0 Bonus (0) 0 TOTAL SCORE: 802 Bonus ------- None Cogmind --------- Core Integrity 0/250 Matter 295/300 Energy 100/100 System Corruption 3% Temperature Cool (0) Movement Treading (160) Location -10/Mines Parts ------- > --- POWER (1) -------- (None) > --- PROPULSION (2) --- Light Treads > --- UTILITY (2) ------ Large Storage Unit > --- WEAPON (2) ------- (None) > --- INVENTORY (15) --- Armored Wheel Armored Wheel High-capacity Storage Unit Hardened Light Armor Plating Hardened Light Armor Plating Hardened Light Armor Plating Tractor Beam Medium Laser Medium Laser Medium Laser Rocket Launcher Hammer Peak State ------------ > --- POWER ------------ Ion Engine > --- PROPULSION ------- Light Treads Light Treads > --- UTILITY ---------- Small Storage Unit Hardened Light Armor Plating > --- WEAPON ----------- Advanced Beam Cannon Assault Rifle > --- INVENTORY -------- Armored Wheel Armored Wheel Hardened Light Armor Plating Hardened Light Armor Plating Hardened Light Armor Plating Light Assault Rifle Shotgun [Rating: 11] Favorites ----------- Power Ion Engine Engine Ion Engine Propulsion Light Treads Treads Light Treads Utility Hardened Light Armor Plating Storage Large Storage Unit Protection Hardened Light Armor Plating Weapon Light Assault Rifle Energy Gun Medium Laser Energy Cannon Advanced Beam Cannon Ballistic Gun Light Assault Rifle Build | -11 -10 -10 ------- Run | Scr Mat Min Slots Evolved . | . . . Power . | . . . Propulsion . | . . . Utility . | . . . Weapon . | . . . Parts Attached 20 | 6 11 3 Power 1 | 1 . . Engine 1 | 1 . . Core . | . . . Reactor . | . . . Propulsion 8 | 2 3 3 Treads 8 | 2 3 3 Leg . | . . . Wheel . | . . . Hover . | . . . Flight . | . . . Utility 4 | 1 3 . Device . | . . . Storage 3 | 1 2 . Processor . | . . . Hackware . | . . . Protection 1 | . 1 . Artifact . | . . . Weapon 7 | 2 5 . Energy Gun 1 | . 1 . Energy Cannon 1 | . 1 . Ballistic Gun 5 | 2 3 . Ballistic Cannon . | . . . Launcher . | . . . Special Weapon . | . . . Impact Weapon . | . . . Slashing Weapon . | . . . Piercing Weapon . | . . . Special Melee Weapon . | . . . Unidentified Prototypes 1 | . 1 . Parts Lost 8 | . . 8 Power 1 | . . 1 Propulsion 4 | . . 4 Utility 1 | . . 1 Weapon 2 | . . 2 Highest Loss Streak 8 | . . 8 To Critical Strikes . | . . . Average Slot Usage (%) 99 | . 99 98 Engine 14 | . 14 14 Treads 28 | . 28 28 Storage 14 | . 14 14 Protection 13 | . 13 13 Energy Gun 8 | . 7 14 Ballistic Gun 19 | . 20 13 Naked Turns . | . . . Heaviest Build 33 | 13 33 33 Greatest Support 40 | 40 40 40 Greatest Overweight (x) 1 | . . 1 Average Overweight (x) . | . . . Largest Inventory Capacity 15 | 8 15 15 Average Capacity 12 | 6 11 15 Most Carried 15 | 4 13 15 Average Carried 9 | 2 9 14 Final Capacity 15 | 8 15 15 Final Carried 13 | 1 13 12 Class Distribution -------------------- 100% | Mutant Dominant Class ---------------- Mutant | -10/Materials Mutant | -10/Mines Resources | -11 -10 -10 ----------- Run | Scr Mat Min Matter Collected 626 | 228 385 13 Remotely . | . . . Salvage Created 456 | . 456 . Parts 24 | . 24 . Haulers Intercepted 2 | . 2 . Recyclers Shooed 1 | . 1 . Parts Field Recycled . | . . . Retrieved Matter . | . . . Parts Self-Destructed . | . . . Prevented . | . . . Kills | -11 -10 -10 ------- Run | Scr Mat Min Combat Hostiles Destroyed 10 | . 10 . Guns 10 | . 10 . Classes Destroyed 3 | . 3 . Hauler 2 | . 2 . Swarmer 2 | . 2 . Grunt 8 | . 8 . Best Kill Streak 2 | . 2 . Combat Bots Only 2 | . 2 . Max Kills in Single Turn 1 | . 1 . Gunslinging . | . . . Exploded . | . . . Melee . | . . . Uniques/NPCs Destroyed . | . . . Combat | -11 -10 -10 -------- Run | Scr Mat Min Damage Taken 1508 | . 542 966 Core 259 | . 49 210 Absorbed by Shields . | . . . Regen/Repaired (Parts) 97 | . 97 . Core Remaining (%) 100 | 100 . . Volleys Fired 53 | . 53 . Largest 2 | . 2 . Hottest 70 | . 70 . Shots Fired 106 | . 106 . Gun 106 | . 106 . Cannon . | . . . Launcher . | . . . Special . | . . . Kinetic 96 | . 96 . Thermal 10 | . 10 . Explosive . | . . . Electromagnetic . | . . . Robot Hit Streak 8 | . 8 . Robot Miss Streak 4 | . 4 . Penetration Max . | . . . Secondary Targets 2 | . 2 . Max Gunslinging Chain 1 | . 1 . Shots Hit Robots 73 | . 73 . Core Hits 28 | . 28 . Critical Kills . | . . . Critical Parts Destroyed . | . . . Critical Strikes . | . . . Melee Attacks . | . . . Impact . | . . . Slashing . | . . . Piercing . | . . . Sneak Attacks . | . . . Combat Hostiles . | . . . Follow-up Attacks . | . . . Damage Inflicted 916 | . 916 . Guns 916 | . 916 . Cannons . | . . . Explosions . | . . . Melee . | . . . Ramming . | . . . Kinetic 824 | . 824 . Thermal 92 | . 92 . Explosive . | . . . Electromagnetic . | . . . Impact . | . . . Slashing . | . . . Piercing . | . . . Highest Corruption 3 | . 3 3 Average Corruption 3 | . 3 3 Corruption Purged . | . . . Corruption Blocked . | . . . Effects 16 | . 13 3 Message Errors 2 | . 2 . Matter Fused 4 | . 3 1 Heat Flow Errors 4 | . 3 1 Energy Discharges 4 | . 4 . Data Loss (minor) 2 | . 1 1 Overload Shots . | . . . Overflow Damage . | . . . Projectiles . | . . . Explosions . | . . . Melee . | . . . Knockbacks . | . . . Impact . | . . . Kinetic . | . . . Secondary . | . . . Self-Inflicted Damage . | . . . Shots . | . . . Rammed . | . . . Targets Rammed . | . . . Kicked . | . . . Crushed . | . . . Highest Temperature 250 | . 250 104 Average Temperature 67 | . 68 56 Received Heat Transfer 279 | . 279 . Siege Activations . | . . . Robots Corrupted . | . . . Combat Hostiles . | . . . Parts Fried . | . . . Impact Corruptions . | . . . Robots Melted . | . . . Combat Hostiles . | . . . Parts Melted . | . . . Heat Transferred 259 | . 259 . Parts Sabotaged . | . . . Parts Stolen . | . . . Parts Stripped . | . . . Power Chain Reactions . | . . . Missiles Intercepted . | . . . Alert | -11 -10 -10 ------- Run | Scr Mat Min Peak Influence 190 | . 190 15 Initial . | . . . Average 57 | . 66 . Maximum Alert Level . | . . . Low Security (%) 100 | 100 100 100 Level 1 . | . . . Level 2 . | . . . Level 3 . | . . . Level 4 . | . . . Level 5 . | . . . High Security . | . . . Max Security . | . . . Squads Dispatched 4 | . 4 . Investigation 2 | . 2 . Extermination . | . . . Reinforcement 2 | . 2 . Assault . | . . . Garrison . | . . . Intercept . | . . . Searches Triggered . | . . . Construction Impeded . | . . . Haulers Reinforced . | . . . Active Scanning Responses . | . . . Cargo Convoy Interrupts . | . . . Stealth | -11 -10 -10 --------- Run | Scr Mat Min Distress Signals . | . . . Communications Jammed . | . . . Distress Signals . | . . . Times Spotted 23 | . 17 6 Peak Tracking Total 6 | . 3 6 Tactical Retreats . | . . . Traps | -11 -10 -10 ------- Run | Scr Mat Min Traps Triggered 1 | . 1 . Indirectly . | . . . Trap Hack Attempts . | . . . Triggered . | . . . Disarmed . | . . . Reprogrammed . | . . . Reused . | . . . Traps Extracted . | . . . Installed . | . . . Triggered . | . . . Machines | -11 -10 -10 ---------- Run | Scr Mat Min Machines Disabled . | . . . Max in Single Turn . | . . . Machines Sabotaged . | . . . Garrisons Compromised . | . . . Overloaded Fab Kills . | . . . Hacking | -11 -10 -10 --------- Run | Scr Mat Min Machines Accessed 6 | . 6 . Terminals 4 | . 4 . Fabricators . | . . . Repair Stations 1 | . 1 . Recycling Units 1 | . 1 . Scanalyzers . | . . . Garrison Access . | . . . Total Hacks 21 | . 21 . Successful 8 | . 8 . Failed 13 | . 13 . Catastrophic 1 | . 1 . Database Lockouts . | . . . Manual 13 | . 13 . Terminals 14 | . 14 . Fabricators . | . . . Repair Stations 5 | . 5 . Recycling Units 2 | . 2 . Scanalyzers . | . . . Garrison Access . | . . . Terminal Hacks 4 | . 4 . Robot Analysis 4 | . 4 . Fabricator Hacks . | . . . Repair Station Hacks 3 | . 3 . Scan Component 2 | . 2 . Repair 1 | . 1 . Recycling Unit Hacks . | . . . Scanalyzer . | . . . Garrison Access Hacks . | . . . Unauthorized Hacks 1 | . 1 . Terminals . | . . . Fabricators . | . . . Repair Stations . | . . . Recycling Units 1 | . 1 . Mask 1 | . 1 . Scanalyzers . | . . . Garrison Access . | . . . Data Cores Recovered . | . . . Used . | . . . Hacking Detections 5 | . 5 . Full Trace Events 2 | . 2 . Feedback Events . | . . . Feedback Blocked . | . . . Robot Schematics Acquired . | . . . Robots Built . | . . . Authchips . | . . . Time . | . . . Total Robot Build Rating . | . . . Part Schematics Acquired . | . . . Parts Built . | . . . Authchips . | . . . Time . | . . . Total Part Build Rating . | . . . Parts Repaired 1 | . 1 . Time 26 | . 26 . Parts Recycled . | . . . Recycled Matter . | . . . Retrieved Matter . | . . . Retrieved Components . | . . . Parts Scanalyzed . | . . . Part Schematics Acquired . | . . . Parts Damaged . | . . . Bothacking | -11 -10 -10 ------------ Run | Scr Mat Min Used RIF Installer . | . . . Robots Hacked . | . . . Non-combat . | . . . Combat . | . . . Robot Hacks Applied . | . . . Relay Couplers Released . | . . . Fabnet Peak Effective % . | . . . Robots Rewired . | . . . Allies Hacked . | . . . Hacks Repelled . | . . . Allies | -11 -10 -10 -------- Run | Scr Mat Min Total Allies . | . . . Largest Group . | . . . Highest-Rated Group . | . . . Highest-Rated Ally . | . . . Total Orders . | . . . Ally Attacks . | . . . Total Damage . | . . . Kills . | . . . Allies Corrupted . | . . . Allies Melted 1 | . . 1 Intel | -11 -10 -10 ------- Run | Scr Mat Min Robot Analysis Total 4 | . 4 . Derelict Logs Recovered . | . . . Drone Launches . | . . . Drone Recoveries . | . . . Exploration | -11 -10 -10 ------------- Run | Scr Mat Min Turns Passed 1581 | 46 1358 177 Spaces Moved 822 | 27 690 105 Core 7 | 7 . . Treads 815 | 20 690 105 Legs . | . . . Wheels . | . . . Hover . | . . . Flight . | . . . Fastest Speed 50 | 50 160 160 Average Speed 159 | 131 160 162 Slowest Speed 240 | 160 160 240 Overloaded Moves . | . . . Propulsion Burnouts . | . . . Robots Hopped . | . . . Cave-ins Triggered . | . . . Exploration Rate (%) 37 | 3 90 18 Regions Visited 2 Branch Regions 1 Pre-discovered Areas . | . . . Known Exits Taken . | . . . Unknown Exits Taken 2 | 1 1 . Scrap Searched 1 | . . 1 Spaces Dug . | . . . Terrain Destroyed . | . . . Melee . | . . . Projectile . | . . . AOE . | . . . Terrain Rammed . | . . . Walls Destroyed . | . . . Machines Disabled . | . . . Actions | -11 -10 -10 --------- Run | Scr Mat Min Total 995 | 36 847 112 Wait 68 | . 66 2 Move 820 | 26 689 105 Hop . | . . . Pick Up 22 | 4 16 2 Fast Attach 6 | 3 3 . Attach 7 | 3 1 3 Detach 2 | . 2 . Swap 7 | . 7 . Drop 10 | . 10 . Fire 53 | . 53 . Melee . | . . . Ram . | . . . Kick . | . . . Crush . | . . . Escape Stasis . | . . . Rewire . | . . . Trap . | . . . Miscellaneous . | . . . Route ------- -11/Scrapyard -10/Materials (discovered 4 exits: [*Mat x3] / [*Min]) -10/Mines (discovered 1 exit: [*Mat]) History --------- Turn | Location | Event 10 | -11/Scrapyard | Discovered new exit (range 15) 47 | -11/Scrapyard | Entered Materials 285 | -10/Materials | Discovered new exit (range 16) 305 | -10/Materials | Build established: Mutant 444 | -10/Materials | Discovered new exit (range 14) 777 | -10/Materials | Discovered new exit (range 15) 1165 | -10/Materials | Repaired Lgt. Treads? 1230 | -10/Materials | Discovered new exit (range 3) 1405 | -10/Materials | Entered Mines 1412 | -10/Mines | Received a Rocket Launcher from a helpful Derelict 1474 | -10/Mines | Discovered new exit (range 5) 1534 | -10/Mines | Assembled infested the area 1539 | -10/Mines | Assisted by a Guerilla fighting off Assembled 1575 | -10/Mines | Core integrity fell below 50% 1581 | -10/Mines | Core integrity fell below 20% 1582 | -10/Mines | Destroyed by D-53 Grenadier with Mini Grenade Launcher Last Messages --------------- 01569_ The unstable cave ceiling collapses. 01569_ U-05 Engineer lays Concrete. 01570_ Hrd. Light Armor Plating destroyed. 01570_ U-05 Engineer lays Concrete. 01572_ U-05 Engineer destroyed. 01572_ Lgt. Treads destroyed. 01573_ The unstable cave ceiling collapses. 01574_ as-50256 sneak attacks. 01574_ R-06 Scavenger system corrupted by crushing effect. 01574_ R-06 Scavenger knocked back. 01574_ Lgt. Assault Rifle destroyed. 01575_ R-06 Scavenger system terminally corrupted. 01576_ Core Extractor disabled. 01576_ Lgt. Treads destroyed. 01577_ The unstable cave ceiling collapses. 01578_ as-50256 destroyed. 01580_ The unstable cave ceiling collapses. 01580_ Med. Laser destroyed. 01582_ Ion Engine destroyed. 01582_ Lgt. Treads destroyed. Map ----- +----------------------------------------------------+ | ?????????????????????????????????????????????????? | | ?????????????????????????????????????????????????? | | ?????????????????????????????????????????????????? | | ?????????????????????????????????????????????????? | | ?????????????????????????????????????????????????? | | ?????????????????????????????????????????????????? | | ?????????????????????????????????????????????????? | | ?????????????????????????????????????????????????? | | ?????????????????????????????????????????????????? | | ?????????????????????????????????????????????????? | | ?????????????????????????????????????????????????? | | ?????????????????????????????????????????????????? | | ?????????????????????????????????##??????????????? | | ????????????????????????????????? ??????????????? | | ?????????????????????????????????# #?????????????? | | ?????????????????????????????????# #?????????????? | | ?????????????????????????????????# #?????????????? | | ?????????????????????????????????# #?????????????? | | ?????????????????????###?????????# #?????????????? | | ???????????????????### ########## ##????????????? | | ??????????????????## ###??????????? | | ??????????????????# ###????????? | | ??????????????????# " # ##### ##???????? | | ??????????????????# ##??# #???????? | | ??????????????????# #??## #???????? | | ??????????????????# @ ##??# ##???????? | | ?????????????????## #??## ##????????? | | ????????????????## #???#####?????????? | | ????????????????# #?????????????????? | | ????????????????# dd #?????????????????? | | ???????????????## % # ##?????????????????? | | ??????????????# %* ##????????????????? | | ?????????????# % # #????????????????? | | ????????????# # #??###???????????? | | ???????????? % # ##??# ???????????? | | ???? """ #### % ##r #???# #??########## | | ???? """ # ### #???# #?? | | ???# ##?# #???# #? < ? | | ???# ##### # ###??# #####!## """ "?? | | ???####??????#### # ##???# [% """ "?? | | ????????????????########????########### """ "?? | | ??????????????????????????????????????? ? | | ????????????????????????????????????????########## | | ?????????????????????????????????????????????????? | | ?????????????????????????????????????????????????? | | | | | | | | | | | +----------------------------------------------------+ Best States ------------- Heat Dissipation 25 Energy Generation 10 Energy Capacity 250 Matter Stores 300 Matter Capacity 300 Sight Range 16 Terrain Scan Density 10 Armor Coverage 150 Evasion (%) 50 Recoil Reduction 2 Item Schematics ----------------- None Robot Schematics ------------------ None Fabricated ------------ Nothing Alien Tech Used ----------------- None Achievements -------------- None Challenges ------------ None Game ------ Seed SwordSigixLance Manual? 0 Play Time 00:12:42 Cumulative 93.5 hours Start 2022.07.17 @ 14:17:29 End 2022.07.17 @ 14:29:26 Sessions 1 Manual Loads 0 Difficulty Rogue Special Mode None Game No. 46 Rogue 46 Adventurer 0 Explorer 0 Win Type - Total 4 Types 3/0/0/1/0/0/0/0/0 Lore% 59 Gallery% 59 Achievement% 48 Wizard Run 0 Options --------- ASCII 0 Keyboard 1 Movement Numpad Keybinds 0 Fullscreen 2 Font 18/X11 Map View 76x50 Tactical HUD 1 Map Filters NONE Filters NONE Steam 1 RUN: 804ff6b4-9248-485a-af03-f0fb8390efa2